bitfinex/quotes_BTCUSD_20260110
["timestamp","ask_amount","ask_price","bid_price","bid_amount"]
[1768017601331,0.03,90634.0,90624.0,0.0110346]
[1768017601533,0.03,90634.0,90623.0,0.0594056]
[1768017601882,0.03,90636.0,90623.0,0.0594056]
[1768017602198,0.03,90636.0,90620.0,0.26183624]
[1768017602199,0.03,90636.0,90626.0,0.04837088]
[1768017602519,0.02208,90638.0,90636.0,0.000999]
[1768017602676,0.02208,90641.0,90632.0,0.09246828]
[1768017602877,0.03,90640.0,90632.0,0.09246777]
[1768017603326,0.03,90640.0,90633.0,0.04555035]
[1768017603884,0.03,90639.0,90633.0,0.05658385]
[1768017604092,0.02208,90644.0,90640.0,0.04555035]
[1768017604332,0.02208,90644.0,90639.0,0.000999]
[1768017604541,0.02208,90644.0,90633.0,0.04555035]
[1768017604907,0.03,90643.0,90633.0,0.04555035]
[1768017609612,0.03,90643.0,90633.0,0.04554846]
[1768017610402,0.03,90633.0,90617.0,0.04555035]
[1768017610668,0.03,90626.0,90620.0,0.04555035]
[1768017610816,0.03,90626.0,90620.0,0.04407738]
[1768017611020,0.03,90626.0,90617.0,0.01103545]
[1768017611418,0.07932066,90624.0,90618.0,0.01103533]
[1768017611871,0.07932066,90622.0,90619.0,0.01103521]
[1768017612004,0.04909654,90622.0,90617.0,0.01103545]
[1768017612207,0.04884865,90622.0,90616.0,0.03326707]
[1768017612434,0.04875601,90622.0,90616.0,0.03326707]
[1768017612806,0.04875601,90622.0,90616.0,0.0222315]
[1768017613786,0.03,90625.0,90616.0,0.0222315]
[1768017614876,0.03,90624.0,90616.0,0.0222315]
[1768017615868,0.03,90623.0,90616.0,0.0222315]
[1768017616954,0.03,90627.0,90616.0,0.0222315]
[1768017618033,0.03,90628.0,90616.0,0.0222315]
[1768017618433,0.04103411,90628.0,90616.0,0.0222315]
[1768017618779,0.01096023,90628.0,90616.0,0.0222315]
[1768017618983,0.01018003,90628.0,90616.0,0.0222315]
[1768017619201,0.01103399,90629.0,90616.0,0.06778185]
[1768017619401,0.01103411,90628.0,90616.0,0.06778185]
[1768017620365,0.01072228,90628.0,90616.0,0.06778185]
[1768017620739,0.01103399,90629.0,90617.0,0.04555035]
[1768017620950,0.03,90629.0,90617.0,0.04555035]
[1768017621153,0.03,90629.0,90617.0,0.0565858]
[1768017621333,0.03,90629.0,90619.0,0.25080115]
[1768017621532,0.03,90629.0,90618.0,0.04555035]
[1768017621935,0.03,90630.0,90618.0,0.04555035]
[1768017622381,0.03,90628.0,90617.0,0.01103545]
[1768017622554,0.04869574,90629.0,90617.0,0.01103545]
[1768017622741,0.04869574,90629.0,90618.0,0.01103533]
[1768017623456,0.01103375,90631.0,90617.0,0.01103545]
[1768017623623,0.03,90630.0,90617.0,0.01103545]
[1768017623829,0.03,90630.0,90617.0,0.0565858]
[1768017624492,0.03,90629.0,90618.0,0.05658568]
[1768017626007,0.01072167,90633.0,90619.0,0.01103521]
[1768017626179,0.03,90630.0,90618.0,0.04555035]
[1768017627270,0.01084716,90631.0,90618.0,0.04555035]
[1768017629213,0.01103363,90632.0,90618.0,0.05658568]
[1768017629421,0.03,90631.0,90618.0,0.05658568]
[1768017630580,0.03,90630.0,90619.0,0.04555035]
[1768017631417,0.03,90630.0,90619.0,0.05658556]
[1768017631594,0.03,90632.0,90619.0,0.05658556]
[1768017632368,0.0105977,90633.0,90619.0,0.05658556]
[1768017632946,0.03,90632.0,90619.0,0.04555035]
[1768017633141,0.03,90630.0,90620.0,0.04833701]
[1768017635052,0.03,90629.0,90620.0,0.04833701]
[1768017635346,0.01084704,90632.0,90620.0,0.04833701]
[1768017635547,0.03273895,90634.0,90620.0,0.0593721]
[1768017635846,0.03273895,90634.0,90620.0,0.04833701]
[1768017636345,0.03,90633.0,90620.0,0.04833701]
[1768017636570,0.0110329,90638.0,90620.0,0.04833701]
[1768017636571,0.01103216,90644.0,90630.0,0.01103387]
[1768017636778,0.02243276,90643.0,90632.0,0.05937064]
[1768017636980,0.02243276,90643.0,90634.0,0.05937039]
[1768017637120,0.00035276,90643.0,90634.0,0.05937039]
[1768017637319,0.00035276,90643.0,90635.0,0.05937027]
[1768017637526,0.00035276,90643.0,90635.0,0.04833701]
[1768017638005,0.00035276,90643.0,90636.0,0.01103314]
[1768017638191,0.07613343,90636.0,90635.0,0.01103326]
[1768017638386,0.06757573,90636.0,90635.0,0.01103326]
[1768017638584,0.06757573,90636.0,90634.0,0.01103338]
[1768017638585,0.03,90636.0,90633.0,0.0110335]
[1768017638791,0.07613343,90634.0,90633.0,0.0110335]
[1768017639196,0.042472,90634.0,90633.0,0.0110335]
[1768017639467,0.03892902,90634.0,90633.0,0.0110335]
[1768017639844,0.03892902,90634.0,90633.0,0.06620104]
[1768017640576,0.00035276,90643.0,90635.0,0.01103326]
[1768017640788,0.00035276,90643.0,90637.0,0.01103302]
[1768017640972,0.00035276,90643.0,90636.0,0.01103314]
[1768017641810,0.00035276,90643.0,90637.0,0.04833701]
[1768017643289,0.00035276,90643.0,90637.0,0.05937003]
[1768017644645,0.00035276,90643.0,90639.0,0.04833701]
[1768017645247,0.00022882,90643.0,90639.0,0.04833701]
[1768017645614,0.03022882,90643.0,90639.0,0.04833701]
[1768017646551,0.03,90642.0,90639.0,0.04833701]
[1768017647640,0.00010487,90643.0,90639.0,0.04833701]
[1768017650047,2.601e-05,90648.0,90639.0,0.04833701]
[1768017650244,9.602e-05,90648.0,90639.0,0.04833701]
[1768017651193,0.01081583,90649.0,90639.0,0.04833701]
[1768017651960,0.02208,90650.0,90639.0,0.04833701]
[1768017652163,0.03311143,90650.0,90639.0,0.04833701]
[1768017654210,0.03305009,90650.0,90639.0,0.04833701]
[1768017654411,0.01103156,90649.0,90639.0,0.04833701]
[1768017654937,0.03305009,90650.0,90639.0,0.04833701]
[1768017655144,0.02992125,90650.0,90639.0,0.04833701]
[1768017655342,0.01103156,90649.0,90639.0,0.04833701]
[1768017656016,0.01071981,90649.0,90639.0,0.04833701]
[1768017656211,0.02992125,90650.0,90639.0,0.04833701]
[1768017656419,0.03,90649.0,90639.0,0.04833701]
[1768017657167,0.04103156,90649.0,90639.0,0.04833701]
[1768017658854,0.03,90649.0,90639.0,0.04833701]
[1768017659095,0.04103156,90649.0,90639.0,0.04833701]
[1768017660070,0.03,90649.0,90639.0,0.04833701]
[1768017660413,0.01085412,90648.0,90635.0,0.01103326]
[1768017660621,0.01103156,90649.0,90636.0,0.04595136]
[1768017660792,0.04034481,90648.0,90635.0,0.01110327]
[1768017660993,0.03,90645.0,90635.0,7.001e-05]
[1768017661179,0.03,90645.0,90636.0,0.01103314]
[1768017661381,0.03,90645.0,90635.0,7.001e-05]
[1768017661579,0.03,90641.0,90635.0,7.001e-05]
[1768017661922,0.03,90641.0,90635.0,0.01110327]
[1768017662667,0.07034481,90647.0,90635.0,0.01110327]
[1768017663652,0.07034481,90647.0,90635.0,7.001e-05]
[1768017664055,0.07034481,90647.0,90635.0,0.01110327]
[1768017664198,0.04003306,90647.0,90635.0,0.01110327]
[1768017664866,0.04003306,90647.0,90635.0,7.001e-05]
[1768017665413,0.04003306,90647.0,90635.0,0.01110327]
[1768017665673,0.03997488,90647.0,90635.0,0.01110327]
[1768017666839,0.03935012,90647.0,90635.0,0.01110327]
[1768017667038,0.03,90648.0,90635.0,0.01110327]
[1768017668266,0.01083066,90649.0,90635.0,0.01110327]
[1768017669083,0.01078184,90649.0,90635.0,0.01110327]
[1768017669248,0.03,90649.0,90636.0,0.01103314]
[1768017670093,0.03,90649.0,90635.0,0.01110327]
[1768017670286,0.03,90649.0,90636.0,0.01103314]
[1768017671473,0.03,90649.0,90637.0,0.01103302]
[1768017671681,0.03,90649.0,90635.0,0.01110327]
[1768017671878,0.03,90649.0,90636.0,0.01103314]
[1768017672097,0.03,90649.0,90637.0,0.01103302]
[1768017672299,0.03,90649.0,90636.0,0.01103314]
[1768017672931,0.03,90649.0,90637.0,0.01103302]
[1768017673095,0.03,90649.0,90636.0,0.01103314]
[1768017674446,0.03,90649.0,90635.0,0.01110327]
[1768017674611,0.03935012,90638.0,90637.0,0.03]
[1768017674798,0.03788016,90649.0,90638.0,4.154e-05]
[1768017675240,0.02992125,90650.0,90638.0,0.00070351]
[1768017675418,0.02992125,90650.0,90638.0,0.04647106]
[1768017675621,0.01888982,90650.0,90638.0,0.04647106]
[1768017675859,0.03,90649.0,90638.0,0.04647106]
[1768017676594,0.03,90647.0,90638.0,0.04647106]
[1768017677584,0.04103168,90648.0,90638.0,0.04647106]
[1768017677787,0.03,90648.0,90638.0,0.04647106]
[1768017677991,0.03,90648.0,90638.0,0.04642631]
[1768017678162,0.01070059,90649.0,90638.0,0.04642631]
[1768017678488,0.03,90649.0,90638.0,0.04642631]
[1768017678863,0.04103156,90649.0,90638.0,0.04642631]
[1768017679070,0.03,90645.0,90638.0,0.04642631]
[1768017680065,0.03,90649.0,90638.0,0.04642631]
[1768017680265,0.04103156,90649.0,90638.0,0.04642631]
[1768017681223,0.01103168,90648.0,90638.0,0.04642631]
[1768017681404,0.03,90647.0,90638.0,0.04642631]
[1768017682767,0.0410318,90647.0,90638.0,0.04642631]
[1768017682911,0.03,90647.0,90638.0,0.04642631]
[1768017683359,0.03,90646.0,90638.0,0.04642631]
[1768017684566,0.03,90648.0,90638.0,0.04642631]
[1768017684934,0.03,90645.0,90638.0,0.04642631]
[1768017685362,0.03,90645.0,90638.0,0.03898329]
[1768017685573,0.03,90645.0,90635.0,7.001e-05]
[1768017686004,0.03,90646.0,90635.0,7.001e-05]
[1768017688993,0.03,90646.0,90635.0,0.04583756]
[1768017690346,0.03,90645.0,90635.0,0.04583756]
[1768017691513,0.03,90646.0,90635.0,0.04583756]
[1768017692030,0.04466442,90636.0,90635.0,7.001e-05]
[1768017692352,0.01103156,90649.0,90635.0,0.01110327]
[1768017692697,0.01103156,90649.0,90637.0,0.00066197]
[1768017693266,0.03,90648.0,90637.0,0.00066197]
[1768017693460,0.04103168,90648.0,90637.0,0.00066197]
[1768017693638,0.04103192,90646.0,90637.0,0.04691802]
[1768017694045,0.03,90646.0,90637.0,0.04691802]
[1768017694638,0.03,90645.0,90637.0,0.04691802]
[1768017695917,0.03,90644.0,90637.0,0.04691802]
[1768017696769,0.03,90647.0,90637.0,0.04691802]
[1768017696972,0.01103156,90649.0,90637.0,0.04691802]
[1768017696973,0.03,90643.0,90637.0,0.04691802]
[1768017697940,0.03,90647.0,90637.0,0.04691802]
[1768017699405,0.03,90648.0,90637.0,0.04691802]
[1768017699692,0.03,90646.0,90637.0,0.04691802]
[1768017700543,0.03,90648.0,90637.0,0.04691802]
[1768017701584,0.03,90649.0,90637.0,0.04691802]
[1768017702451,0.03,90647.0,90637.0,0.04691802]
[1768017703454,0.03,90648.0,90637.0,0.04691802]
[1768017704009,0.03,90648.0,90637.0,0.04662068]
[1768017704550,0.04103156,90649.0,90637.0,0.04662068]
[1768017705370,0.03,90647.0,90637.0,0.04662068]
[1768017706455,0.03,90648.0,90637.0,0.04662068]
[1768017706858,0.03,90646.0,90637.0,0.04662068]
[1768017708049,0.03,90645.0,90637.0,0.04662068]
[1768017708271,0.03,90645.0,90637.0,0.04625605]
[1768017709078,0.03,90644.0,90637.0,0.04625605]
[1768017709940,0.01103168,90648.0,90637.0,0.04625605]
[1768017709941,0.03,90643.0,90637.0,0.04625605]
[1768017711226,0.03,90646.0,90637.0,0.04625605]
[1768017712209,0.03,90648.0,90637.0,0.04625605]
[1768017712616,0.04103168,90648.0,90637.0,0.04625605]
[1768017712810,0.03,90648.0,90637.0,0.04625605]
[1768017713399,0.04103168,90648.0,90637.0,0.04625605]
[1768017713594,0.03,90649.0,90637.0,0.04625605]
[1768017713933,0.03,90647.0,90637.0,0.04625605]
[1768017714725,0.04103156,90649.0,90637.0,0.04625605]
[1768017714927,0.03,90649.0,90637.0,0.04625605]
[1768017716839,0.03,90649.0,90638.0,0.00561794]
[1768017717068,0.03,90649.0,90637.0,0.01103302]
[1768017717069,0.03,90649.0,90639.0,0.04628647]
[1768017718311,0.03,90649.0,90639.0,0.05731924]
[1768017718520,0.03,90649.0,90643.0,0.04628647]
[1768017719478,0.03,90649.0,90645.0,0.04628647]
[1768017719659,0.03,90649.0,90645.0,0.01315723]
[1768017720095,0.03,90649.0,90642.0,0.01103241]
[1768017720466,0.03,90649.0,90644.0,0.05731863]
[1768017720806,0.03,90649.0,90644.0,0.04628647]
[1768017721014,0.03,90649.0,90644.0,0.05731863]
[1768017721233,0.03,90649.0,90644.0,0.04628647]
[1768017722067,0.03,90649.0,90643.0,0.01103229]
[1768017722269,0.03,90649.0,90645.0,0.01103204]
[1768017722633,0.03,90649.0,90644.0,0.01103216]
[1768017722829,0.03,90649.0,90641.0,0.01103253]
[1768017723100,0.03,90649.0,90643.0,0.01103229]
[1768017723735,0.03,90649.0,90641.0,0.01103253]
[1768017723941,0.03,90649.0,90642.0,0.01103241]
[1768017724147,0.03,90649.0,90641.0,0.01103253]
[1768017724354,0.03,90649.0,90639.0,0.29696536]
[1768017724706,0.03,90649.0,90640.0,0.04967032]
[1768017724927,0.03,90649.0,90641.0,0.04967032]
[1768017725367,0.03,90649.0,90641.0,0.06070285]
[1768017726240,0.03,90649.0,90641.0,0.11586544]
[1768017727298,0.03,90649.0,90643.0,0.01103229]
[1768017727502,0.03,90649.0,90642.0,0.01103241]
[1768017727742,0.03,90649.0,90641.0,0.04967032]
[1768017727919,0.03,90649.0,90641.0,0.06070285]
[1768017728240,0.03,90649.0,90642.0,0.01103241]
[1768017729501,0.03,90649.0,90641.0,0.06070285]
[1768017730103,0.03,90649.0,90641.0,0.04576884]
[1768017730301,0.03,90649.0,90641.0,0.05680137]
[1768017730718,0.03,90649.0,90642.0,0.01103241]
[1768017730925,0.03,90649.0,90641.0,0.05680137]
[1768017731245,0.03,90649.0,90642.0,0.01103241]
[1768017731408,0.03,90649.0,90641.0,0.05680137]
[1768017731994,0.03,90649.0,90642.0,0.01103241]
[1768017733300,0.03,90649.0,90641.0,0.05675634]
[1768017733895,0.03,90649.0,90642.0,0.01103241]
[1768017734317,0.000999,90642.0,90639.0,0.04967032]
[1768017734519,0.00095745,90642.0,90639.0,0.04967032]
[1768017734907,0.03,90643.0,90639.0,0.04967032]
[1768017735106,0.03,90643.0,90639.0,0.01289339]
[1768017735535,0.03,90643.0,90639.0,0.01193639]
[1768017735731,0.03,90643.0,90635.0,0.02215001]
[1768017735936,0.03,90645.0,90635.0,0.02215001]
[1768017737076,0.03,90644.0,90635.0,0.02215001]
[1768017737948,0.03,90642.0,90635.0,0.02215001]
[1768017738402,0.0109216,90646.0,90635.0,0.02215001]
[1768017738982,0.04103204,90645.0,90635.0,0.02215001]
[1768017739180,0.03,90645.0,90635.0,0.02215001]
[1768017739846,0.03,90645.0,90635.0,0.07182033]
[1768017740181,0.03,90646.0,90635.0,0.07182033]
[1768017740484,0.03,90646.0,90635.0,0.08285359]
[1768017740888,0.03,90646.0,90636.0,0.04967032]
[1768017741040,0.03,90648.0,90636.0,0.04967032]
[1768017741674,0.04103168,90648.0,90636.0,0.04967032]
[1768017742296,0.03,90642.0,90636.0,0.04967032]
[1768017742656,0.03,90642.0,90636.0,0.04962238]
[1768017742864,0.03,90642.0,90636.0,0.0495265]
[1768017743269,0.03,90641.0,90636.0,0.0495265]
[1768017744404,0.03,90640.0,90636.0,0.0716065]
[1768017745182,0.03,90640.0,90637.0,0.06070334]
[1768017745383,0.03,90639.0,90637.0,0.04967032]
[1768017746383,0.03,90649.0,90637.0,0.04967032]
[1768017747386,0.03,90649.0,90637.0,0.06070334]
[1768017747594,0.03,90647.0,90637.0,0.04967032]
[1768017749166,0.03,90646.0,90637.0,0.04967032]
[1768017750091,0.03,90645.0,90637.0,0.04967032]
[1768017751305,0.03,90646.0,90637.0,0.04967032]
[1768017751673,0.04103192,90646.0,90637.0,0.04967032]
[1768017751883,0.03,90646.0,90637.0,0.04967032]
[1768017752769,0.03,90643.0,90637.0,0.04967032]
[1768017753834,0.03,90647.0,90637.0,0.04967032]
[1768017754313,0.03,90645.0,90637.0,0.04967032]
[1768017755274,0.03,90644.0,90637.0,0.04967032]
[1768017756173,0.03,90643.0,90637.0,0.04967032]
[1768017756616,0.01888982,90650.0,90637.0,0.10483533]
[1768017756825,0.04846538,90649.0,90638.0,0.0110329]
[1768017757022,0.04846538,90649.0,90637.0,0.05516499]
[1768017757399,0.03,90640.0,90637.0,0.05516499]
[1768017757674,0.00695781,90649.0,90640.0,0.03]
[1768017758364,0.00695781,90647.0,90640.0,0.03066195]
[1768017758570,0.03695781,90641.0,90640.0,0.03066195]
[1768017758708,0.03595881,90641.0,90640.0,0.03066195]
[1768017759115,0.03595881,90641.0,90640.0,0.00066195]
[1768017760249,0.03505058,90641.0,90640.0,0.00066195]
[1768017760605,0.01888982,90650.0,90640.0,0.00066195]
[1768017761580,0.00459664,90649.0,90640.0,0.00066195]
[1768017761771,0.00459664,90648.0,90640.0,0.00066195]
[1768017763602,0.03,90649.0,90640.0,0.00066195]
[1768017763741,0.03,90649.0,90641.0,0.04910466]
[1768017774089,0.03,90649.0,90641.0,0.06013719]
[1768017774247,0.01888982,90650.0,90642.0,0.06058572]
[1768017774606,0.01875112,90650.0,90642.0,0.04955331]
[1768017778454,0.01103156,90649.0,90642.0,0.04955331]
[1768017778614,0.02978255,90650.0,90642.0,0.04955331]
[1768017779661,0.01103156,90649.0,90642.0,0.04955331]
[1768017779954,0.03,90647.0,90642.0,0.04955331]
[1768017780998,0.03,90646.0,90642.0,0.04955331]
[1768017781882,0.03,90646.0,90321.0,90.004]
[1768017781883,0.00459664,90645.0,90625.0,0.04970481]
[1768017782063,0.00459664,90645.0,90498.0,0.556731]
[1768017782064,0.00199256,90621.0,90609.0,0.01103643]
[1768017782228,0.00199256,90621.0,90607.0,0.01118817]
[1768017782229,0.2506974,90620.0,90611.0,0.04955331]
[1768017782432,0.03,90617.0,90607.0,0.0001515]
[1768017782630,0.03,90617.0,90608.0,0.01103655]
[1768017782953,0.03,90617.0,90607.0,0.0001515]
[1768017783374,0.03,90614.0,90607.0,0.0001515]
[1768017783582,0.000151,90607.0,90600.0,0.0468679]
[1768017783849,0.03,90610.0,90600.0,0.0419185]
[1768017784419,0.03,90610.0,90600.0,5.06e-05]
[1768017784623,0.03,90609.0,90600.0,5.06e-05]
[1768017785005,0.04103643,90609.0,90600.0,5.06e-05]
[1768017785207,0.03,90609.0,90600.0,5.06e-05]
[1768017785614,0.03,90609.0,90598.0,0.0001515]
[1768017785861,0.04103643,90609.0,90598.0,0.01387715]
[1768017786237,0.04103643,90609.0,90595.0,0.01103813]
[1768017786238,0.03,90605.0,90592.0,0.0468679]
[1768017786438,0.01103679,90606.0,90592.0,0.0468679]
[1768017786647,0.04773949,90607.0,90594.0,0.01103825]
[1768017786858,0.05877616,90607.0,90593.0,0.01103838]
[1768017787171,0.04773949,90607.0,90594.0,0.01103825]
[1768017787421,0.03,90606.0,90594.0,0.01103825]
[1768017787623,0.03,90606.0,90593.0,0.01112608]
[1768017788153,0.03199262,90606.0,90593.0,0.01112608]
[1768017789302,0.03199262,90606.0,90593.0,8.77e-05]
[1768017789496,0.04302941,90606.0,90593.0,8.77e-05]
[1768017789715,0.03199262,90606.0,90593.0,0.01112608]
[1768017789895,0.04302941,90606.0,90593.0,8.77e-05]
[1768017790098,0.03199262,90606.0,90593.0,0.01112608]
[1768017790990,0.03199262,90606.0,90593.0,8.77e-05]
[1768017791191,0.03199262,90606.0,90594.0,0.01103825]
[1768017791456,0.03199262,90606.0,90593.0,8.77e-05]
[1768017791457,0.03199262,90606.0,90593.0,0.01112608]
[1768017792234,0.04103716,90603.0,90593.0,8.77e-05]
[1768017792416,0.03,90603.0,90593.0,8.77e-05]
[1768017793718,0.03,90602.0,90593.0,8.77e-05]
[1768017794740,0.03,90603.0,90593.0,8.77e-05]
[1768017795590,0.00199262,90601.0,90593.0,8.77e-05]
[1768017796217,0.03199262,90601.0,90593.0,8.77e-05]
[1768017797104,0.03,90600.0,90593.0,8.77e-05]
[1768017798340,0.03,90599.0,90593.0,8.77e-05]
[1768017799290,0.03,90602.0,90593.0,8.77e-05]
[1768017800670,0.00199262,90601.0,90593.0,8.77e-05]
[1768017803202,0.03199262,90601.0,90593.0,8.77e-05]
[1768017804403,0.03,90600.0,90593.0,8.77e-05]
[1768017805511,0.03,90599.0,90593.0,8.77e-05]
[1768017806519,0.03,90598.0,90593.0,8.77e-05]
[1768017807480,0.03,90597.0,90593.0,8.77e-05]
[1768017807681,0.03199262,90597.0,90593.0,8.77e-05]
[1768017808145,0.00184162,90597.0,90593.0,8.77e-05]
[1768017809359,0.00184162,90597.0,90593.0,0.01112608]
[1768017809541,0.00184162,90597.0,90593.0,8.77e-05]
[1768017809744,0.00184162,90597.0,90593.0,0.01112608]
[1768017809950,0.00184162,90597.0,90594.0,0.01103825]
[1768017810153,0.00184162,90597.0,90593.0,8.77e-05]
[1768017810666,0.00184162,90597.0,90593.0,0.01112608]
[1768017811171,0.00184162,90597.0,90593.0,8.77e-05]
[1768017811374,0.00184162,90597.0,90596.0,0.02999999]
[1768017813186,0.00184162,90597.0,90593.0,8.77e-05]
[1768017817357,0.00184162,90597.0,90593.0,0.04725014]
[1768017818116,0.00184162,90597.0,90594.0,0.01103825]
[1768017818331,0.00184162,90597.0,90594.0,0.05820069]
[1768017818906,0.00184162,90597.0,90596.0,0.07716244]
[1768017819090,0.00184162,90597.0,90596.0,0.03]
[1768017819438,0.00184162,90597.0,90596.0,0.02633961]
[1768017819660,0.03330237,90597.0,90596.0,0.02633961]
[1768017819865,0.00184162,90597.0,90596.0,0.02633961]
[1768017820067,0.00184162,90597.0,90594.0,0.06622951]
[1768017820300,0.00184162,90597.0,90595.0,0.04716244]
[1768017820883,0.00184162,90597.0,90594.0,0.06622951]
[1768017821086,0.00026815,90598.0,90597.0,0.02969806]
[1768017821282,0.00026815,90598.0,90595.0,0.06622881]
[1768017821483,0.00026815,90598.0,90595.0,0.01103813]
[1768017821705,0.02208,90608.0,90595.0,0.01103813]
[1768017821706,0.02185849,90608.0,90598.0,0.00026815]
[1768017821957,0.02185849,90608.0,90598.0,0.22882963]
[1768017822155,0.03,90607.0,90597.0,0.01103789]
[1768017822489,0.03,90607.0,90598.0,0.01401621]
[1768017822764,0.02185849,90608.0,90599.0,0.03]
[1768017822916,0.02185849,90608.0,90599.0,0.02970285]
[1768017823110,0.00015092,90607.0,90599.0,0.01074037]
[1768017823471,0.00015092,90607.0,90598.0,0.01103777]
[1768017823819,0.03015092,90607.0,90598.0,0.0107405]
[1768017824152,0.03015092,90607.0,90599.0,0.04716244]
[1768017824347,0.03015092,90607.0,90599.0,0.01401621]
[1768017824574,0.03015092,90607.0,90598.0,0.0107405]
[1768017824912,0.03015092,90607.0,90598.0,0.06592926]
[1768017825381,0.03015092,90607.0,90598.0,0.0107405]
[1768017826140,0.03015092,90607.0,90599.0,0.01103764]
[1768017826341,0.03015092,90607.0,90598.0,0.0107405]
[1768017826887,0.03015092,90607.0,90599.0,0.01103764]
[1768017827668,0.03015092,90607.0,90598.0,0.0107405]
[1768017827872,0.03015092,90607.0,90598.0,0.01103777]
[1768017828708,0.03015092,90607.0,90596.0,0.01103801]
[1768017828850,0.03015092,90607.0,90597.0,0.01103789]
[1768017829887,0.03015092,90607.0,90598.0,0.01103777]
[1768017830095,0.03015092,90607.0,90598.0,0.04716244]
[1768017830290,0.03015092,90607.0,90599.0,0.01103764]
[1768017830645,0.03015092,90607.0,90599.0,0.05611203]
[1768017831067,0.03015092,90607.0,90599.0,0.04507439]
[1768017831263,0.03015092,90607.0,90599.0,0.05611203]
[1768017831684,0.03015092,90607.0,90600.0,0.01103752]
[1768017831898,0.03015092,90607.0,90599.0,0.05611203]
[1768017833327,0.04716244,90606.0,90601.0,0.0110374]
[1768017833525,0.07716244,90605.0,90599.0,0.06622528]
[1768017833707,0.07716244,90605.0,90601.0,0.0110374]
[1768017833912,0.07716244,90601.0,90600.0,0.01103752]
[1768017834296,0.00015092,90607.0,90601.0,0.00066223]
[1768017834297,0.02090223,90607.0,90601.0,0.00066223]
[1768017834630,0.02090223,90607.0,90599.0,0.01103764]
[1768017834983,0.02090223,90607.0,90600.0,0.01103752]
[1768017835341,0.05075131,90601.0,90600.0,0.01103752]
[1768017835671,0.00015092,90607.0,90600.0,0.03]
[1768017836646,0.03015092,90607.0,90600.0,0.03]
[1768017837190,0.03015092,90607.0,90598.0,0.01103777]
[1768017837551,0.03,90607.0,90598.0,0.01103777]
[1768017838149,0.03,90607.0,90593.0,0.01112608]
[1768017838473,0.03,90607.0,90598.0,0.01103777]
[1768017838837,0.03,90607.0,90598.0,0.01074052]
[1768017839687,0.03,90607.0,90599.0,0.01074042]
[1768017839883,0.03,90607.0,90598.0,0.01074052]
[1768017840403,0.03,90607.0,90597.0,0.01103789]
[1768017840768,0.03,90607.0,90598.0,0.04507439]
[1768017841361,0.03,90607.0,90600.0,0.04507439]
[1768017841982,0.03,90607.0,90600.0,0.05611191]
[1768017842212,0.03,90607.0,90602.0,0.04507439]
[1768017842405,0.03,90607.0,90602.0,0.01192816]
[1768017842631,0.03,90607.0,90601.0,0.0110374]
[1768017842960,0.03,90607.0,90603.0,0.04507439]
[1768017843244,0.03,90607.0,90599.0,0.05518781]
[1768017843245,0.03,90607.0,90593.0,0.05527927]
[1768017843392,0.03465956,90607.0,90597.0,0.01103789]
[1768017843594,0.02185849,90608.0,90598.0,0.04681706]
[1768017844863,0.03289504,90608.0,90598.0,0.04681706]
[1768017845071,0.04103691,90605.0,90598.0,0.04681706]
[1768017845274,0.03,90605.0,90598.0,0.04681706]
[1768017846204,0.03,90607.0,90598.0,0.04681706]
[1768017855695,0.03,90604.0,90598.0,0.04681706]
[1768017856665,0.03,90606.0,90598.0,0.04681706]
[1768017857312,0.03,90602.0,90598.0,0.02095376]
[1768017857521,0.03,90602.0,90593.0,0.04698356]
[1768017858331,0.03,90601.0,90593.0,0.04698356]
[1768017859733,0.01103691,90605.0,90593.0,0.04698356]
[1768017859734,0.04103704,90604.0,90593.0,0.04698356]
[1768017860408,0.03,90602.0,90593.0,0.04698356]
[1768017860634,0.0008325,90593.0,90587.0,0.04681706]
[1768017860835,0.03,90597.0,90587.0,0.06898375]
[1768017861182,0.03,90597.0,90587.0,0.02216669]
[1768017862823,0.03,90597.0,90588.0,0.01103898]
[1768017863911,0.03,90597.0,90589.0,0.01103886]
[1768017864106,0.03,90597.0,90588.0,0.01103898]
[1768017864866,0.03,90597.0,90589.0,0.01103886]
[1768017865171,0.03,90597.0,90588.0,0.01103898]
[1768017866299,0.03,90599.0,90588.0,0.01103898]
[1768017866636,0.03,90599.0,90588.0,0.05785604]
[1768017867206,0.03,90599.0,90588.0,0.04681706]
[1768017867407,0.04103764,90599.0,90588.0,0.04681706]
[1768017868481,0.03,90597.0,90588.0,0.04681706]
[1768017869605,0.03,90596.0,90588.0,0.04681706]
[1768017870505,0.03,90595.0,90588.0,0.04681706]
[1768017871649,0.03,90594.0,90588.0,0.04681706]
[1768017872665,0.03,90593.0,90588.0,0.04681706]
[1768017873677,0.04103777,90598.0,90588.0,0.04681706]
[1768017874773,0.03,90597.0,90588.0,0.04681706]
[1768017875762,0.03,90596.0,90588.0,0.04681706]
[1768017875962,0.04851884,90593.0,90587.0,0.02216669]
[1768017876146,0.03,90590.0,90587.0,0.02216669]
[1768017876343,0.00668603,90591.0,90587.0,0.02216669]
[1768017876543,0.26197561,90600.0,90587.0,0.02216669]
[1768017876766,0.0473635,90595.0,90587.0,0.02216669]
[1768017877365,0.03,90594.0,90587.0,0.02216669]
[1768017879819,0.03,90593.0,90587.0,0.02216669]
[1768017880029,0.0773635,90593.0,90587.0,0.02216669]
[1768017881228,0.03,90592.0,90587.0,0.02216669]
[1768017881436,0.03,90592.0,90588.0,0.04578884]
[1768017882415,0.03,90591.0,90588.0,0.04578884]
[1768017883410,0.03,90590.0,90588.0,0.04578884]
[1768017883906,0.01103764,90599.0,90588.0,0.04578884]
[1768017884909,0.03,90598.0,90588.0,0.04578884]
[1768017885057,0.04103777,90598.0,90588.0,0.04578884]
[1768017885672,0.03,90598.0,90588.0,0.04578884]
[1768017885873,0.04103777,90598.0,90588.0,0.04578884]
[1768017888899,0.03,90596.0,90588.0,0.04578884]
[1768017890250,0.03,90595.0,90588.0,0.04578884]
[1768017891354,0.06622677,90598.0,90588.0,0.04578884]
[1768017891355,0.03,90596.0,90588.0,0.04578884]
[1768017893558,0.03,90597.0,90588.0,0.04578884]
[1768017893946,0.03,90595.0,90587.0,4.669e-05]
[1768017895205,0.03,90594.0,90587.0,4.669e-05]
[1768017896622,0.03,90593.0,90587.0,0.0110858]
[1768017896852,0.03,90593.0,90587.0,4.669e-05]